[Event "*** SCC Grand Prix: Titled Tuesday Blitz"]
[Site "Chess.com"]
[Date "2020.06.23"]
[Round "4"]
[White "grandcoach"]
[Black "Bubar"]
[Result "1-0"]
[WhiteElo "2096"]
[BlackElo "2250"]
[TimeControl "180+1"]
[EndTime "10:37:04 PDT"]
[Termination "grandcoach won by resignation"]

1. e4 {[%clk 0:03:00.9]} 1... e6 {[%clk 0:02:58.8]} 2. Nf3 {[%clk 0:03:00.2]}
2... d5 {[%clk 0:02:58.1]} 3. e5 {[%clk 0:03:00.7]} 3... c5 {[%clk 0:02:57.4]}
4. b4 {[%clk 0:03:01.2]} 4... cxb4 {[%clk 0:02:56.4]} 5. a3 {[%clk 0:03:01.8]}
5... Nc6 {[%clk 0:02:55.9]} 6. axb4 {[%clk 0:03:01.4]} 6... Bxb4 {[%clk
0:02:55.8]} 7. c3 {[%clk 0:03:02]} 7... Ba5 {[%clk 0:02:55.4]} 8. d4 {[%clk
0:03:02.3]} 8... f5 {[%clk 0:02:54.9]} 9. g4 {[%clk 0:02:40.7]} 9... Nge7 {[%clk
0:02:53.9]} 10. Rg1 {[%clk 0:02:39.1]} 10... f4 {[%clk 0:02:50.5]} 11. Bd3
{[%clk 0:02:37.3]} 11... O-O {[%clk 0:02:48.5]} 12. h4 {[%clk 0:02:13.2]} 12...
Bd7 {[%clk 0:02:35.2]} 13. h5 {[%clk 0:02:13.2]} 13... Rc8 {[%clk 0:02:27.6]}
14. Kf1 {[%clk 0:01:49]} 14... h6 {[%clk 0:01:36.7]} 15. Bc2 {[%clk 0:01:36.6]}
15... Be8 {[%clk 0:01:25]} 16. Qd3 {[%clk 0:01:32.2]} 16... g6 {[%clk
0:01:24.8]} 17. g5 {[%clk 0:01:32.4]} 17... Nf5 {[%clk 0:01:21.5]} 18. gxh6
{[%clk 0:01:31.6]} 18... Kh7 {[%clk 0:01:20.5]} 19. Ng5+ {[%clk 0:01:24.5]}
19... Kxh6 {[%clk 0:01:14.2]} 20. Nxe6 {[%clk 0:01:23.9]} 20... Qe7 {[%clk
0:01:15.1]} 21. Bxf4+ {[%clk 0:01:23]} 21... Kh7 {[%clk 0:01:09.2]} 22. Nxf8+
{[%clk 0:01:21.1]} 22... Qxf8 {[%clk 0:01:09.1]} 23. hxg6+ {[%clk 0:01:20.5]}
23... Bxg6 {[%clk 0:01:09.3]} 24. Qh3+ {[%clk 0:01:11.5]} 24... Kg7 {[%clk
0:01:06.4]} 25. Bxf5 {[%clk 0:01:11]} 1-0

[Event "*** SCC Grand Prix: Titled Tuesday Blitz"]
[Site "Chess.com"]
[Date "2020.06.23"]
[Round "4"]
[White "Kapitan_Bayan"]
[Black "MacDaddyMac"]
[Result "0-1"]
[WhiteElo "2440"]
[BlackElo "2266"]
[TimeControl "180+1"]
[EndTime "10:37:07 PDT"]
[Termination "MacDaddyMac won by resignation"]

1. d4 {[%clk 0:03:00.9]} 1... e6 {[%clk 0:02:58.8]} 2. Nf3 {[%clk 0:03:01.1]}
2... d5 {[%clk 0:02:59]} 3. c4 {[%clk 0:03:00]} 3... Nf6 {[%clk 0:02:59.2]} 4.
Nc3 {[%clk 0:03:00.5]} 4... e5 {[%clk 0:02:59.7]} 5. dxe5 {[%clk 0:02:59.1]}
5... Ne4 {[%clk 0:02:51.6]} 6. Nxe4 {[%clk 0:02:56.5]} 6... dxe4 {[%clk
0:02:51.5]} 7. Qxd8+ {[%clk 0:02:57.4]} 7... Kxd8 {[%clk 0:02:52.1]} 8. Ng5
{[%clk 0:02:58.1]} 8... Be6 {[%clk 0:02:50.7]} 9. Nxe6+ {[%clk 0:02:52.5]} 9...
fxe6 {[%clk 0:02:51.6]} 10. Bg5+ {[%clk 0:02:52.8]} 10... Be7 {[%clk 0:02:52]}
11. O-O-O+ {[%clk 0:02:52.1]} 11... Nd7 {[%clk 0:02:51.6]} 12. Bf4 {[%clk
0:02:51.6]} 12... g5 {[%clk 0:02:50.6]} 13. Bg3 {[%clk 0:02:51.5]} 13... h5
{[%clk 0:02:51]} 14. h4 {[%clk 0:02:50.1]} 14... g4 {[%clk 0:02:51.1]} 15. f3
{[%clk 0:02:44]} 15... exf3 {[%clk 0:02:50.6]} 16. gxf3 {[%clk 0:02:44.9]} 16...
gxf3 {[%clk 0:02:51.2]} 17. exf3 {[%clk 0:02:36.8]} 17... Rg8 {[%clk 0:02:38.2]}
18. Bh2 {[%clk 0:02:29.5]} 18... Bxh4 {[%clk 0:02:30.5]} 19. Bh3 {[%clk
0:02:26.2]} 19... Ke7 {[%clk 0:02:27.1]} 20. Rhg1 {[%clk 0:02:15.2]} 20... Bf2
{[%clk 0:02:15]} 21. Rxg8 {[%clk 0:01:57.4]} 21... Be3+ {[%clk 0:02:14.3]} 22.
Kc2 {[%clk 0:01:55.8]} 22... Rxg8 {[%clk 0:02:14.3]} 23. Kd3 {[%clk 0:01:55.6]}
23... Bf2 {[%clk 0:02:06.6]} 24. Rf1 {[%clk 0:01:43.5]} 24... Bg3 {[%clk
0:01:26.6]} 25. Bg1 {[%clk 0:01:20.7]} 25... Nxe5+ {[%clk 0:01:23.2]} 26. Ke4
{[%clk 0:01:19.3]} 26... Nxc4 {[%clk 0:01:19.8]} 27. b3 {[%clk 0:00:57.6]} 27...
Nd2+ {[%clk 0:01:18.8]} 0-1

[Event "*** SCC Grand Prix: Titled Tuesday Blitz"]
[Site "Chess.com"]
[Date "2020.06.23"]
[Round "4"]
[White "dretch"]
[Black "doons21"]
[Result "1-0"]
[WhiteElo "2786"]
[BlackElo "2544"]
[TimeControl "180+1"]
[EndTime "10:37:12 PDT"]
[Termination "dretch won by checkmate"]

1. d4 {[%clk 0:03:00.9]} 1... Nf6 {[%clk 0:02:59.7]} 2. c4 {[%clk 0:02:59.4]}
2... g6 {[%clk 0:02:55.4]} 3. Nc3 {[%clk 0:02:59.9]} 3... Bg7 {[%clk 0:02:55.8]}
4. e4 {[%clk 0:03:00.2]} 4... O-O {[%clk 0:02:56.3]} 5. Nf3 {[%clk 0:03:00.8]}
5... d6 {[%clk 0:02:56.3]} 6. h3 {[%clk 0:03:01.4]} 6... Nbd7 {[%clk 0:02:44]}
7. Bg5 {[%clk 0:02:59.6]} 7... e5 {[%clk 0:02:39.7]} 8. Bd3 {[%clk 0:02:59.7]}
8... exd4 {[%clk 0:02:34]} 9. Nxd4 {[%clk 0:03:00.6]} 9... Nc5 {[%clk
0:02:33.9]} 10. O-O {[%clk 0:03:00.5]} 10... c6 {[%clk 0:02:31]} 11. Bc2 {[%clk
0:02:56]} 11... Qb6 {[%clk 0:02:30.3]} 12. Nb3 {[%clk 0:02:54.9]} 12... Nxb3
{[%clk 0:01:42.4]} 13. axb3 {[%clk 0:02:52.5]} 13... Re8 {[%clk 0:01:11.9]} 14.
Qxd6 {[%clk 0:02:47]} 14... Nd7 {[%clk 0:01:11.7]} 15. Be3 {[%clk 0:02:44.5]}
15... Qd8 {[%clk 0:01:09.6]} 16. f4 {[%clk 0:02:39.8]} 16... Qh4 {[%clk
0:01:03.2]} 17. e5 {[%clk 0:02:25.8]} 17... Bf8 {[%clk 0:00:59.4]} 18. Qd2
{[%clk 0:02:24.4]} 18... Nc5 {[%clk 0:00:59.1]} 19. b4 {[%clk 0:02:20.1]} 19...
Ne6 {[%clk 0:00:58.6]} 20. Ne4 {[%clk 0:02:19.6]} 20... Be7 {[%clk 0:00:58.4]}
21. c5 {[%clk 0:02:13.5]} 21... Rd8 {[%clk 0:00:57.6]} 22. Nd6 {[%clk
0:02:12.2]} 22... b6 {[%clk 0:00:58.1]} 23. f5 {[%clk 0:02:09.2]} 23... gxf5
{[%clk 0:00:57.9]} 24. Rxf5 {[%clk 0:02:06.9]} 24... bxc5 {[%clk 0:00:54.6]} 25.
Raf1 {[%clk 0:01:55.2]} 25... Nd4 {[%clk 0:00:49]} 26. Rxf7 {[%clk 0:01:50.9]}
26... Be6 {[%clk 0:00:45.4]} 27. Rxh7 {[%clk 0:01:45]} 27... Qg3 {[%clk
0:00:38.6]} 28. Bxd4 {[%clk 0:01:42.9]} 28... Bxd6 {[%clk 0:00:35.2]} 29. Rh8+
{[%clk 0:01:40.6]} 29... Kxh8 {[%clk 0:00:34.4]} 30. Qh6+ {[%clk 0:01:40.4]}
30... Kg8 {[%clk 0:00:34.6]} 31. Qh7# {[%clk 0:01:40.5]} 1-0

[Event "*** SCC Grand Prix: Titled Tuesday Blitz"]
[Site "Chess.com"]
[Date "2020.06.23"]
[Round "4"]
[White "2346PL"]
[Black "Camels1981"]
[Result "0-1"]
[WhiteElo "2447"]
[BlackElo "2327"]
[TimeControl "180+1"]
[EndTime "10:37:14 PDT"]
[Termination "Camels1981 won by resignation"]

1. d4 {[%clk 0:03:00.9]} 1... Nf6 {[%clk 0:02:46.6]} 2. Bg5 {[%clk 0:03:00.4]}
2... Ne4 {[%clk 0:02:42.4]} 3. Bf4 {[%clk 0:02:59.6]} 3... d5 {[%clk 0:02:41.2]}
4. f3 {[%clk 0:02:57.9]} 4... Nd6 {[%clk 0:02:32.8]} 5. e4 {[%clk 0:02:58.4]}
5... dxe4 {[%clk 0:02:15.1]} 6. Nc3 {[%clk 0:02:58.8]} 6... Bf5 {[%clk
0:01:58.4]} 7. g4 {[%clk 0:02:53.7]} 7... Bg6 {[%clk 0:01:57.3]} 8. Bg2 {[%clk
0:02:54.2]} 8... e3 {[%clk 0:01:46]} 9. Qe2 {[%clk 0:02:50.6]} 9... e6 {[%clk
0:01:43.9]} 10. h4 {[%clk 0:02:48.1]} 10... h5 {[%clk 0:01:42.4]} 11. O-O-O
{[%clk 0:02:44.3]} 11... c6 {[%clk 0:01:25.5]} 12. Bxe3 {[%clk 0:02:42.2]} 12...
Nd7 {[%clk 0:01:24.9]} 13. Nh3 {[%clk 0:02:33.7]} 13... Nb6 {[%clk 0:00:51.1]}
14. Nf4 {[%clk 0:02:32.2]} 14... Bh7 {[%clk 0:00:50.4]} 15. Nxh5 {[%clk
0:02:31]} 15... Nbc4 {[%clk 0:00:49.8]} 16. Bf2 {[%clk 0:02:23]} 16... Qb6
{[%clk 0:00:38.9]} 17. b3 {[%clk 0:02:22]} 17... Qa5 {[%clk 0:00:31.8]} 18. Na4
{[%clk 0:02:16.6]} 18... b5 {[%clk 0:00:25.8]} 19. Be1 {[%clk 0:02:14.3]} 19...
Qa6 {[%clk 0:00:23.5]} 20. Ng3 {[%clk 0:01:55.9]} 20... bxa4 {[%clk 0:00:18.8]}
21. bxc4 {[%clk 0:01:55.9]} 21... Nxc4 {[%clk 0:00:18.7]} 22. Bf1 {[%clk
0:01:54.3]} 22... Ba3+ {[%clk 0:00:18.2]} 23. Kb1 {[%clk 0:01:49.3]} 23... Qb5+
{[%clk 0:00:18.1]} 0-1

[Event "*** SCC Grand Prix: Titled Tuesday Blitz"]
[Site "Chess.com"]
[Date "2020.06.23"]
[Round "4"]
[White "HunterBRR"]
[Black "Gerasimenyuk_Miha"]
[Result "0-1"]
[WhiteElo "2090"]
[BlackElo "2323"]
[TimeControl "180+1"]
[EndTime "10:37:15 PDT"]
[Termination "Gerasimenyuk_Miha won by resignation"]

1. d4 {[%clk 0:03:00.9]} 1... d5 {[%clk 0:02:59.4]} 2. c4 {[%clk 0:03:01.1]}
2... Nf6 {[%clk 0:02:58.8]} 3. cxd5 {[%clk 0:02:58.2]} 3... Nxd5 {[%clk
0:02:59.7]} 4. e4 {[%clk 0:02:57.7]} 4... Nb6 {[%clk 0:03:00.6]} 5. Nc3 {[%clk
0:02:57.2]} 5... e5 {[%clk 0:03:00.5]} 6. Be3 {[%clk 0:02:28.7]} 6... Bb4 {[%clk
0:02:58.1]} 7. Nf3 {[%clk 0:02:25.5]} 7... exd4 {[%clk 0:02:57.2]} 8. Qxd4
{[%clk 0:02:13.9]} 8... Bxc3+ {[%clk 0:02:56]} 9. Qxc3 {[%clk 0:02:09.8]} 9...
O-O {[%clk 0:02:55.5]} 10. Rd1 {[%clk 0:02:06.7]} 10... N8d7 {[%clk 0:02:44.5]}
11. Bd3 {[%clk 0:02:03.7]} 11... c6 {[%clk 0:02:44.6]} 12. O-O {[%clk
0:02:02.9]} 12... Qc7 {[%clk 0:02:44.7]} 13. Nd4 {[%clk 0:01:53.4]} 13... Ne5
{[%clk 0:02:39.3]} 14. Nb5 {[%clk 0:01:34]} 14... Qb8 {[%clk 0:02:31.6]} 15.
Nxa7 {[%clk 0:01:17.8]} 15... Nxd3 {[%clk 0:02:24.2]} 16. Bxb6 {[%clk
0:01:03.2]} 16... Nf4 {[%clk 0:02:23.8]} 17. Qe3 {[%clk 0:00:45.5]} 17... Ng6
{[%clk 0:02:18.8]} 18. Nxc8 {[%clk 0:00:44]} 18... Qxc8 {[%clk 0:02:17.7]} 19.
a3 {[%clk 0:00:42.3]} 19... Re8 {[%clk 0:02:17.6]} 20. f3 {[%clk 0:00:39.6]}
20... Ne5 {[%clk 0:02:15.5]} 21. Qd4 {[%clk 0:00:30.1]} 21... Qe6 {[%clk
0:02:14.7]} 22. Rd2 {[%clk 0:00:20.3]} 22... Nc4 {[%clk 0:02:12.8]} 23. Rdd1
{[%clk 0:00:16.6]} 23... h5 {[%clk 0:02:11.8]} 24. Rfe1 {[%clk 0:00:13]} 24...
h4 {[%clk 0:02:10.1]} 25. Bc5 {[%clk 0:00:09.3]} 25... h3 {[%clk 0:02:08]} 26.
g3 {[%clk 0:00:08.5]} 26... Ne5 {[%clk 0:02:07.9]} 27. Kf2 {[%clk 0:00:07.7]}
27... Qf6 {[%clk 0:02:07.3]} 28. Qe3 {[%clk 0:00:07.2]} 28... Ng4+ {[%clk
0:02:06]} 0-1

[Event "*** SCC Grand Prix: Titled Tuesday Blitz"]
[Site "Chess.com"]
[Date "2020.06.23"]
[Round "4"]
[White "Piotrek1979"]
[Black "vovachesss"]
[Result "0-1"]
[WhiteElo "2346"]
[BlackElo "2599"]
[TimeControl "180+1"]
[EndTime "10:37:24 PDT"]
[Termination "vovachesss won by checkmate"]

1. Nf3 {[%clk 0:03:00.9]} 1... d5 {[%clk 0:02:58.9]} 2. g3 {[%clk 0:02:59]} 2...
c6 {[%clk 0:02:59.5]} 3. Bg2 {[%clk 0:02:57.8]} 3... Bg4 {[%clk 0:02:59.9]} 4.
O-O {[%clk 0:02:55.9]} 4... Nd7 {[%clk 0:03:00.4]} 5. d4 {[%clk 0:02:51.9]} 5...
Ngf6 {[%clk 0:02:59.8]} 6. Nbd2 {[%clk 0:02:50.8]} 6... e6 {[%clk 0:02:56.9]} 7.
b3 {[%clk 0:02:49]} 7... Bd6 {[%clk 0:02:56.4]} 8. Bb2 {[%clk 0:02:48.8]} 8...
O-O {[%clk 0:02:56.3]} 9. Re1 {[%clk 0:02:37.1]} 9... Qe7 {[%clk 0:02:50.5]} 10.
e4 {[%clk 0:02:35]} 10... dxe4 {[%clk 0:02:50.3]} 11. Nxe4 {[%clk 0:02:35.1]}
11... Ba3 {[%clk 0:02:47.2]} 12. Bxa3 {[%clk 0:02:22]} 12... Qxa3 {[%clk
0:02:48.1]} 13. Qd2 {[%clk 0:02:10.4]} 13... Rfd8 {[%clk 0:02:44]} 14. Nxf6+
{[%clk 0:02:01.6]} 14... Nxf6 {[%clk 0:02:44.1]} 15. Ne5 {[%clk 0:02:01.5]}
15... Bf5 {[%clk 0:02:44.2]} 16. Nc4 {[%clk 0:01:53.7]} 16... Qe7 {[%clk
0:02:39]} 17. Ne3 {[%clk 0:01:34.7]} 17... Bg6 {[%clk 0:02:35.3]} 18. Rad1
{[%clk 0:01:21.3]} 18... Rd7 {[%clk 0:02:29]} 19. c4 {[%clk 0:01:19.2]} 19...
Rad8 {[%clk 0:02:29.1]} 20. Qb2 {[%clk 0:01:17.5]} 20... Qb4 {[%clk 0:02:00.3]}
21. Bf3 {[%clk 0:01:15.4]} 21... Rxd4 {[%clk 0:01:40.4]} 22. Rxd4 {[%clk
0:01:16.3]} 22... Qxe1+ {[%clk 0:01:39.1]} 23. Kg2 {[%clk 0:01:17]} 23... Rxd4
{[%clk 0:01:39.2]} 24. Qxd4 {[%clk 0:01:17.3]} 24... h6 {[%clk 0:01:22.7]} 25.
Qxa7 {[%clk 0:01:16.2]} 25... Ne4 {[%clk 0:01:17.2]} 26. Ng4 {[%clk 0:01:10.1]}
26... Nd2 {[%clk 0:01:12]} 27. Qe3 {[%clk 0:00:49.8]} 27... Qf1# {[%clk
0:01:10.5]} 0-1

[Event "*** SCC Grand Prix: Titled Tuesday Blitz"]
[Site "Chess.com"]
[Date "2020.06.23"]
[Round "4"]
[White "Aleksandar-Topalov"]
[Black "winniethepooh04"]
[Result "1-0"]
[WhiteElo "2366"]
[BlackElo "1198"]
[TimeControl "180+1"]
[EndTime "10:37:29 PDT"]
[Termination "Aleksandar-Topalov won by resignation"]

1. b3 {[%clk 0:03:00.9]} 1... Nf6 {[%clk 0:02:22.4]} 2. Bb2 {[%clk 0:03:00.3]}
2... g6 {[%clk 0:02:20.4]} 3. Bxf6 {[%clk 0:02:59.4]} 3... exf6 {[%clk
0:02:19.6]} 4. c4 {[%clk 0:02:59.5]} 4... Bg7 {[%clk 0:02:19.7]} 5. Nc3 {[%clk
0:02:59.7]} 5... f5 {[%clk 0:02:19]} 6. e3 {[%clk 0:03:00]} 6... O-O {[%clk
0:02:18.7]} 7. Nge2 {[%clk 0:03:00.3]} 7... c6 {[%clk 0:02:18.3]} 8. g3 {[%clk
0:03:00.4]} 8... d5 {[%clk 0:02:18.6]} 9. cxd5 {[%clk 0:03:00.6]} 9... cxd5
{[%clk 0:02:18.9]} 10. d4 {[%clk 0:03:01]} 10... Nc6 {[%clk 0:02:17.6]} 11. Bg2
{[%clk 0:03:01.4]} 11... Be6 {[%clk 0:02:18]} 12. O-O {[%clk 0:03:01.5]} 12...
a6 {[%clk 0:02:18.4]} 13. Na4 {[%clk 0:03:01]} 13... b5 {[%clk 0:02:12.1]} 14.
Nc5 {[%clk 0:03:00.6]} 14... Bc8 {[%clk 0:02:08.8]} 15. Rc1 {[%clk 0:03:00]}
15... Qd6 {[%clk 0:02:03.8]} 16. Qd2 {[%clk 0:02:59.3]} 16... h5 {[%clk
0:01:56.9]} 17. Rc2 {[%clk 0:02:59.4]} 17... g5 {[%clk 0:01:51.6]} 18. Rfc1
{[%clk 0:02:57.8]} 18... Ra7 {[%clk 0:01:47]} 19. Nc3 {[%clk 0:02:52.1]} 19...
Nb4 {[%clk 0:01:39.8]} 20. Nxb5 {[%clk 0:02:49.4]} 20... axb5 {[%clk 0:01:36.3]}
21. Qxb4 {[%clk 0:02:49.4]} 21... f4 {[%clk 0:01:33.3]} 22. Qxb5 {[%clk
0:02:45.3]} 22... fxg3 {[%clk 0:01:28.5]} 23. hxg3 {[%clk 0:02:45.1]} 23... h4
{[%clk 0:01:28.8]} 24. gxh4 {[%clk 0:02:20.1]} 24... gxh4 {[%clk 0:01:27.2]} 25.
Ne4 {[%clk 0:02:20.3]} 25... dxe4 {[%clk 0:01:22.7]} 26. Rxc8 {[%clk 0:02:18.7]}
26... Rxa2 {[%clk 0:01:15.6]} 27. Rxf8+ {[%clk 0:02:18.1]} 27... Bxf8 {[%clk
0:01:14]} 28. Qg5+ {[%clk 0:02:17.9]} 28... Kh7 {[%clk 0:01:07.1]} 29. Bxe4+
{[%clk 0:02:16.6]} 29... Kh8 {[%clk 0:01:04.8]} 30. Qxh4+ {[%clk 0:02:16.4]}
30... Bh6 {[%clk 0:01:01.4]} 31. Rc8+ {[%clk 0:02:09.7]} 31... Kg7 {[%clk
0:01:01.5]} 32. Qg4+ {[%clk 0:02:08.9]} 32... Kf6 {[%clk 0:00:58.5]} 33. Qf5+
{[%clk 0:02:07.4]} 33... Ke7 {[%clk 0:00:49.3]} 34. Rc6 {[%clk 0:02:00.7]} 34...
Ra1+ {[%clk 0:00:40.9]} 35. Kg2 {[%clk 0:02:00.8]} 35... Qd8 {[%clk 0:00:31.3]}
36. Qf6+ {[%clk 0:01:54.1]} 36... Ke8 {[%clk 0:00:31.2]} 37. Qxd8+ {[%clk
0:01:54.3]} 37... Kxd8 {[%clk 0:00:30.4]} 38. Rxh6 {[%clk 0:01:54.3]} 1-0

[Event "*** SCC Grand Prix: Titled Tuesday Blitz"]
[Site "Chess.com"]
[Date "2020.06.23"]
[Round "4"]
[White "otrov-11"]
[Black "zala02"]
[Result "1-0"]
[WhiteElo "2402"]
[BlackElo "2178"]
[TimeControl "180+1"]
[EndTime "10:37:35 PDT"]
[Termination "otrov-11 won by resignation"]

1. Nf3 {[%clk 0:03:00.9]} 1... d5 {[%clk 0:02:59.1]} 2. c4 {[%clk 0:03:00.5]}
2... c6 {[%clk 0:02:46.1]} 3. d4 {[%clk 0:02:56.8]} 3... Nf6 {[%clk 0:02:44.2]}
4. Nc3 {[%clk 0:02:53.5]} 4... dxc4 {[%clk 0:02:35.9]} 5. a4 {[%clk 0:02:51.5]}
5... e6 {[%clk 0:02:28.7]} 6. e4 {[%clk 0:02:35.5]} 6... Bb4 {[%clk 0:02:25.7]}
7. Bxc4 {[%clk 0:02:35.7]} 7... Nxe4 {[%clk 0:02:16.1]} 8. O-O {[%clk
0:02:35.8]} 8... Bxc3 {[%clk 0:02:11.5]} 9. bxc3 {[%clk 0:02:36.7]} 9... O-O
{[%clk 0:02:07.6]} 10. Qc2 {[%clk 0:02:32.8]} 10... Nf6 {[%clk 0:02:03.2]} 11.
Bg5 {[%clk 0:02:29]} 11... Nbd7 {[%clk 0:01:59]} 12. Rfe1 {[%clk 0:02:22.4]}
12... b6 {[%clk 0:01:42.1]} 13. Ne5 {[%clk 0:02:16.5]} 13... Qc7 {[%clk
0:01:29.8]} 14. Re3 {[%clk 0:02:11.5]} 14... h6 {[%clk 0:01:20]} 15. Bf4 {[%clk
0:02:08.2]} 15... Nxe5 {[%clk 0:00:51.7]} 16. Bxe5 {[%clk 0:02:09.1]} 16... Qe7
{[%clk 0:00:51.8]} 17. Rg3 {[%clk 0:01:59.8]} 17... Nh5 {[%clk 0:00:47.2]} 18.
Rh3 {[%clk 0:01:57.8]} 18... Nf6 {[%clk 0:00:40.7]} 19. Re1 {[%clk 0:01:44.8]}
19... Bb7 {[%clk 0:00:38.9]} 20. Qc1 {[%clk 0:01:45.1]} 20... Rad8 {[%clk
0:00:29.9]} 21. Rxh6 {[%clk 0:01:44.8]} 21... gxh6 {[%clk 0:00:29.4]} 22. Qxh6
{[%clk 0:01:45.7]} 22... Rfe8 {[%clk 0:00:18.8]} 23. Bxf6 {[%clk 0:01:41.9]}
23... Qf8 {[%clk 0:00:18]} 24. Qg5+ {[%clk 0:01:41.5]} 24... Kh7 {[%clk
0:00:17.5]} 25. Re3 {[%clk 0:01:41.6]} 1-0

[Event "*** SCC Grand Prix: Titled Tuesday Blitz"]
[Site "Chess.com"]
[Date "2020.06.23"]
[Round "4"]
[White "2007checkmate"]
[Black "MarcoRiehle"]
[Result "0-1"]
[WhiteElo "2448"]
[BlackElo "2695"]
[TimeControl "180+1"]
[EndTime "10:37:40 PDT"]
[Termination "MarcoRiehle won by resignation"]

1. Nc3 {[%clk 0:03:00.9]} 1... e5 {[%clk 0:02:59.4]} 2. Nf3 {[%clk 0:02:58.6]}
2... Nc6 {[%clk 0:02:58.5]} 3. d4 {[%clk 0:02:58.7]} 3... exd4 {[%clk
0:02:58.3]} 4. Nxd4 {[%clk 0:02:59.6]} 4... Nf6 {[%clk 0:02:58.3]} 5. g3 {[%clk
0:02:59.6]} 5... Bb4 {[%clk 0:02:57]} 6. Nxc6 {[%clk 0:02:57.3]} 6... bxc6
{[%clk 0:02:57.9]} 7. Qd4 {[%clk 0:02:56.2]} 7... Qe7 {[%clk 0:02:55.9]} 8. Bg5
{[%clk 0:02:54.8]} 8... d5 {[%clk 0:02:50.7]} 9. Bxf6 {[%clk 0:02:50.8]} 9...
gxf6 {[%clk 0:02:51.6]} 10. O-O-O {[%clk 0:02:48.4]} 10... Be6 {[%clk
0:02:31.5]} 11. e4 {[%clk 0:02:27.2]} 11... Bc5 {[%clk 0:02:20.5]} 12. Qd2
{[%clk 0:02:24]} 12... d4 {[%clk 0:02:12.7]} 13. Na4 {[%clk 0:02:23.8]} 13...
Bb6 {[%clk 0:02:11.3]} 14. a3 {[%clk 0:02:10.4]} 14... c5 {[%clk 0:02:06.1]} 15.
Bb5+ {[%clk 0:02:03.3]} 15... Bd7 {[%clk 0:02:05.8]} 16. Bxd7+ {[%clk
0:02:03.9]} 16... Qxd7 {[%clk 0:02:06.7]} 17. Nxb6 {[%clk 0:02:04.2]} 17... axb6
{[%clk 0:02:07]} 18. Qf4 {[%clk 0:02:01.3]} 18... Qe7 {[%clk 0:02:05.9]} 19.
Rhe1 {[%clk 0:01:59.7]} 19... Qe5 {[%clk 0:02:00.1]} 20. Qd2 {[%clk 0:01:54.9]}
20... O-O-O {[%clk 0:01:57.6]} 21. f4 {[%clk 0:01:54.3]} 21... Qe6 {[%clk
0:01:52.8]} 22. e5 {[%clk 0:01:33.8]} 22... Qa2 {[%clk 0:01:49.4]} 23. Qg2
{[%clk 0:01:18.5]} 23... Kb8 {[%clk 0:01:40.8]} 24. b3 {[%clk 0:00:33.6]} 24...
d3 {[%clk 0:01:36.1]} 25. a4 {[%clk 0:00:17.6]} 25... d2+ {[%clk 0:01:24.7]} 0-1

[Event "*** SCC Grand Prix: Titled Tuesday Blitz"]
[Site "Chess.com"]
[Date "2020.06.23"]
[Round "4"]
[White "Cubitas"]
[Black "rasmussvane"]
[Result "0-1"]
[WhiteElo "2553"]
[BlackElo "2890"]
[TimeControl "180+1"]
[EndTime "10:37:43 PDT"]
[Termination "rasmussvane won by resignation"]

1. e4 {[%clk 0:03:00.9]} 1... c6 {[%clk 0:03:00.2]} 2. d4 {[%clk 0:03:00.5]}
2... d5 {[%clk 0:03:00.7]} 3. e5 {[%clk 0:02:58.9]} 3... Bf5 {[%clk 0:03:00.6]}
4. Ne2 {[%clk 0:02:57.2]} 4... e6 {[%clk 0:02:59.9]} 5. Ng3 {[%clk 0:02:56.3]}
5... Bg6 {[%clk 0:03:00.3]} 6. h4 {[%clk 0:02:56.9]} 6... h5 {[%clk 0:03:00.8]}
7. Be2 {[%clk 0:02:56.4]} 7... c5 {[%clk 0:03:01.1]} 8. c3 {[%clk 0:02:26.2]}
8... Nc6 {[%clk 0:03:00.9]} 9. a3 {[%clk 0:02:06.7]} 9... cxd4 {[%clk
0:02:56.3]} 10. cxd4 {[%clk 0:02:06.9]} 10... Qb6 {[%clk 0:02:56.9]} 11. Bxh5
{[%clk 0:01:43.2]} 11... Bxh5 {[%clk 0:02:52.8]} 12. Nxh5 {[%clk 0:01:44.1]}
12... Qxd4 {[%clk 0:02:53.2]} 13. Ng3 {[%clk 0:01:19.1]} 13... Qxd1+ {[%clk
0:02:41.9]} 14. Kxd1 {[%clk 0:01:20]} 14... Nxe5 {[%clk 0:02:42.8]} 15. Bf4
{[%clk 0:01:12.3]} 15... Nd3 {[%clk 0:02:39.2]} 16. Be3 {[%clk 0:01:11]} 16...
Nxb2+ {[%clk 0:02:37]} 17. Ke2 {[%clk 0:01:11.2]} 17... Nc4 {[%clk 0:02:37.5]}
18. Nd2 {[%clk 0:01:08.5]} 18... Nxe3 {[%clk 0:02:31.5]} 19. fxe3 {[%clk
0:01:07.6]} 19... Bd6 {[%clk 0:02:31.2]} 20. Ngf1 {[%clk 0:01:04.1]} 20... Nf6
{[%clk 0:02:23.5]} 21. a4 {[%clk 0:01:04.1]} 21... Rc8 {[%clk 0:02:21.7]} 22.
Rb1 {[%clk 0:01:04.5]} 22... b6 {[%clk 0:02:17.8]} 23. Kf3 {[%clk 0:00:56.2]}
23... Nd7 {[%clk 0:02:08.3]} 24. h5 {[%clk 0:00:49.4]} 24... Ne5+ {[%clk
0:02:02.8]} 25. Ke2 {[%clk 0:00:49.9]} 25... Kd7 {[%clk 0:01:47.7]} 26. Rh4
{[%clk 0:00:42.1]} 26... g6 {[%clk 0:01:46.5]} 27. h6 {[%clk 0:00:40.5]} 27...
Rh7 {[%clk 0:01:35.3]} 28. a5 {[%clk 0:00:40.6]} 28... bxa5 {[%clk 0:01:31.3]}
29. Rb7+ {[%clk 0:00:39.8]} 29... Rc7 {[%clk 0:01:23.1]} 30. Rb8 {[%clk
0:00:40.2]} 30... Be7 {[%clk 0:01:19.4]} 31. Ra4 {[%clk 0:00:38.6]} 31... Rxh6
{[%clk 0:01:19]} 32. Rxa5 {[%clk 0:00:38.8]} 32... Nc6 {[%clk 0:01:18.8]} 0-1